bitfinex-derivatives/quotes_SOLF0:USTF0_20250411
["timestamp","ask_amount","ask_price","bid_price","bid_amount"]
[1744382598497,8.3736,119.48,119.47,0.06170781]
[1744382599203,52.9336,119.48,119.47,0.06170781]
[1744382604794,8.3755,119.46,119.41,5.4969679]
[1744382605002,44.56,119.48,119.41,5.4969679]
[1744382605403,8.3765,119.44,119.41,5.4969679]
[1744382605809,8.3761,119.45,119.41,5.4969679]
[1744382606003,0.0538295,119.44,119.41,4.09970338]
[1744382606203,0.0538295,119.44,119.41,12.47770338]
[1744382606509,8.4307295,119.44,119.41,4.09970338]
[1744382606806,8.4307295,119.44,119.41,12.47780338]
[1744382607505,0.0538295,119.44,119.41,4.09970338]
[1744382608204,44.56,119.51,119.41,48.65970338]
[1744382608408,8.3746,119.47,119.41,48.6002]
[1744382608904,8.3755,119.46,119.42,8.3775]
[1744382609104,0.05814048,119.45,119.43,0.06313528]
[1744382609305,65.50689768,119.51,119.41,48.6002]
[1744382609505,0.05765583,119.45,119.43,0.06002801]
[1744382609707,8.3754,119.46,119.42,8.3774]
[1744382610009,0.05702534,119.45,119.43,0.05981965]
[1744382610202,8.376,119.45,119.43,0.05981965]
[1744382610404,0.06169239,119.45,119.43,0.05981965]
[1744382611609,0.06169239,119.45,119.44,8.3764]
[1744382612003,44.56,119.51,119.44,20.94689768]
[1744382613115,0.05637768,119.49,119.46,0.05730502]
[1744382615005,0.05637768,119.49,119.46,21.0042027]
[1744382615205,8.3705,119.53,119.47,7.845]
[1744382615606,8.3708,119.52,119.47,7.845]
[1744382616007,44.44,119.54,119.47,7.845]
[1744382616212,44.44,119.54,119.49,0.056627]
[1744382616412,0.05433123,119.52,119.49,0.056627]
[1744382617013,8.3722,119.5,119.49,0.056627]
[1744382617208,0.05433123,119.52,119.49,0.056627]
[1744382618507,8.42543123,119.52,119.49,8.429127]
[1744382619013,8.42543123,119.52,119.5,8.3721]
[1744382619209,0.05433123,119.52,119.49,0.056627]
[1744382619814,8.3722,119.5,119.49,0.056627]
[1744382620012,52.8,119.5,119.43,7.7866]
[1744382620209,44.44,119.5,119.43,3.9594]
[1744382620515,8.3765,119.44,119.4,96.75070701]
[1744382620710,20.94689768,119.49,119.4,96.75070701]
[1744382620711,44.44,119.46,119.4,96.75070701]
[1744382621102,0.05361404,119.44,119.42,0.05905964]
[1744382621306,0.05361404,119.44,119.43,8.3771]
[1744382621617,0.05361404,119.44,119.42,0.05905964]
[1744382622809,8.3771,119.43,119.42,0.05905964]
[1744382623314,8.3786,119.41,119.36,1.45725592]
[1744382623514,8.3786,119.41,119.36,9.42975592]
[1744382623717,65.38689768,119.46,119.36,9.42975592]
[1744382624016,8.3781,119.42,119.36,9.42975592]
[1744382624315,0.06223127,119.4,119.38,0.05626557]
[1744382624917,0.06223127,119.4,119.38,8.43636557]
[1744382625417,0.06223127,119.4,119.38,70.43636557]
[1744382625719,0.06223127,119.4,119.39,8.3799]
[1744382626314,0.06223127,119.4,119.38,70.43646557]
[1744382627218,0.06223127,119.4,119.39,8.3799]
[1744382627415,8.3774,119.43,119.38,62.05626557]
[1744382627614,8.3774,119.43,119.38,62.0]
[1744382627816,8.3768,119.44,119.4,8.3786]
[1744382628117,647.26,119.49,119.4,20.94689768]
[1744382628419,8.43433156,119.46,119.43,0.05758235]
[1744382628719,0.05933156,119.46,119.43,0.05758235]
[1744382629426,0.05933156,119.46,119.44,8.3761]
[1744382630113,0.05933156,119.46,119.43,7.54098235]
[1744382630522,8.43473156,119.46,119.43,7.54098235]
[1744382631214,0.05933156,119.46,119.43,0.05758235]
[1744382631919,8.43473156,119.46,119.43,0.05758235]
[1744382632109,8.43473156,119.46,119.43,8.43468235]
[1744382633225,0.05933156,119.46,119.43,0.05758235]
[1744382633812,20.94689768,119.45,119.43,0.05758235]
[1744382634521,20.94689768,119.45,119.36,1.45731695]
[1744382634522,29.32689768,119.45,119.36,1.45731695]
[1744382634723,62.88692924,119.46,119.34,3.9713]
[1744382634724,20.94689768,119.42,119.34,3.9713]
[1744382635027,8.3803,119.39,119.36,8.3814]
[1744382635627,8.4403568,119.39,119.36,8.43648545]
[1744382635826,8.4403568,119.39,119.37,8.3811]
[1744382636325,0.0600568,119.39,119.37,8.3809]
[1744382636826,0.0600568,119.39,119.38,8.3806]
[1744382637428,0.0600568,119.39,119.37,8.381]
[1744382637626,0.0600568,119.39,119.36,0.05508545]
[1744382637828,8.4402568,119.39,119.36,0.05508545]
[1744382638025,0.0600568,119.39,119.37,8.381]
[1744382638227,0.0600568,119.39,119.36,0.05508545]
[1744382638626,8.3813,119.37,119.36,0.05508545]
[1744382639427,8.3809,119.38,119.36,0.05508545]
[1744382639627,0.0600568,119.39,119.36,0.05508545]
[1744382640232,8.3813,119.37,119.36,0.05508545]
[1744382641538,8.4402568,119.39,119.36,62.05508545]
[1744382641738,0.0600568,119.39,119.36,62.05508545]
[1744382642040,0.0600568,119.39,119.37,7.9]
[1744382642534,8.3782,119.42,119.38,8.3806]
[1744382642732,8.3782,119.42,119.37,28.84689768]
[1744382642935,44.48,119.44,119.37,28.84689768]
[1744382643137,44.48,119.44,119.39,8.3797]
[1744382643333,44.48,119.44,119.37,7.9]
[1744382643736,44.48,119.44,119.39,0.06163938]
[1744382643737,0.0643298,119.42,119.39,0.06163938]
[1744382643930,647.46,119.47,119.39,0.06163938]
[1744382644132,647.46,119.47,119.38,20.94689768]
[1744382644327,8.3761,119.45,119.41,8.378]
[1744382645135,0.05935335,119.44,119.42,0.05880019]
[1744382645341,8.43585335,119.44,119.42,0.05880019]
[1744382646038,0.05935335,119.44,119.42,0.05880019]
[1744382646538,8.43575335,119.44,119.42,0.05880019]
[1744382646739,0.05935335,119.44,119.42,0.05880019]
[1744382647041,647.46,119.47,119.42,0.05880019]
[1744382647236,647.46,119.47,119.42,8.43590019]
[1744382647237,8.3753,119.46,119.42,8.43590019]
[1744382648138,8.3753,119.46,119.43,8.377]
[1744382648339,0.06064918,119.45,119.42,0.05880019]
[1744382648830,0.06064918,119.45,119.42,8.43620019]
[1744382649037,0.06064918,119.45,119.42,0.05880019]
[1744382649230,0.06064918,119.45,119.44,8.3764]
[1744382649539,8.3732,119.49,119.43,3.6727]
[1744382650140,647.46,119.53,119.44,20.94689768]
[1744382650335,668.40689768,119.53,119.44,8.376]
[1744382650540,8.3736,119.48,119.47,0.05765116]
[1744382651139,8.3762,119.45,119.41,3.6856]
[1744382651339,65.28689768,119.45,119.38,3.6727]
[1744382651540,8.3776,119.43,119.38,3.6727]
[1744382651739,65.28689768,119.45,119.38,3.6727]
[1744382651939,65.28689768,119.45,119.39,8.3798]
[1744382652241,0.05817385,119.43,119.4,0.05813854]
[1744382654245,21.00507153,119.43,119.4,0.05813854]
[1744382654447,8.3785,119.41,119.4,0.05813854]
[1744382654943,0.05817385,119.43,119.4,0.05813854]
[1744382656346,0.05817385,119.43,119.41,70.378]
[1744382656746,0.05817385,119.43,119.42,8.3778]
[1744382658647,65.28689768,119.51,119.44,8.376]
[1744382659047,8.3746,119.47,119.44,8.376]
[1744382659546,65.28689768,119.51,119.44,8.376]
[1744382659746,0.06075431,119.47,119.44,8.43572765]
[1744382660052,8.43535431,119.47,119.44,8.43572765]
[1744382660347,0.06075431,119.47,119.44,0.05972765]
[1744382661253,8.3757,119.45,119.44,0.05972765]
[1744382661856,0.06075431,119.47,119.44,0.05972765]
[1744382662453,8.43545431,119.47,119.44,0.05972765]
[1744382663251,8.43545431,119.47,119.44,8.43612765]
[1744382663547,0.06075431,119.47,119.44,8.43612765]
[1744382664153,8.43515431,119.47,119.44,8.43612765]
[1744382665749,0.06075431,119.47,119.45,8.3754]
[1744382667052,8.43535431,119.47,119.44,8.43572765]
[1744382667454,0.06075431,119.47,119.44,8.43572765]
[1744382667954,8.3753,119.46,119.44,8.43572765]
[1744382668551,8.3753,119.46,119.44,0.05972765]
[1744382669853,0.06075431,119.47,119.45,8.3753]
[1744382670354,0.06075431,119.47,119.46,8.375]
[1744382670952,8.3718,119.51,119.44,13.18476817]
[1744382671156,8.3718,119.51,119.46,13.12504052]
[1744382671356,8.3701,119.53,119.48,13.12504052]
[1744382671544,8.3701,119.53,119.5,8.3718]
[1744382671949,0.0614444,119.53,119.5,0.06412363]
[1744382672252,0.0614444,119.53,119.5,13.18916415]
[1744382672451,91.517324,119.6,119.51,3.9056]
[1744382672647,91.517324,119.6,119.53,8.3701]
[1744382672850,91.517324,119.6,119.52,13.12504052]
[1744382673155,13.12504052,119.58,119.52,8.3707]
[1744382673549,8.369,119.55,119.54,0.0597997]
[1744382676958,8.3714,119.52,119.47,7.5286]
[1744382677257,44.18,119.52,119.47,3.623]
[1744382677658,44.18,119.52,119.44,7.9411]
[1744382678054,44.18,119.52,119.45,8.3752]
[1744382678362,0.06062004,119.49,119.47,0.0619728]
[1744382679961,8.3736,119.48,119.47,0.0619728]
[1744382681660,8.43382004,119.49,119.47,0.0619728]
[1744382681858,0.06062004,119.49,119.47,0.0619728]
[1744382682960,646.88,119.56,119.47,0.0619728]
[1744382683160,646.88,119.56,119.46,20.96880222]
[1744382683360,646.88,119.56,119.47,44.18]
[1744382683966,646.88,119.56,119.48,62.0]
[1744382684167,0.06024287,119.53,119.5,0.05521232]
[1744382685368,8.3715,119.51,119.5,0.05521232]
[1744382686464,8.3715,119.51,119.5,1.232e-05]
[1744382689065,0.06024287,119.53,119.5,1.232e-05]
[1744382689666,0.06024287,119.53,119.5,4.58851232]
[1744382690174,8.3711,119.52,119.5,4.58851232]
[1744382690670,8.3711,119.52,119.5,74.96051232]
[1744382690968,8.43074287,119.53,119.5,74.96051232]
[1744382691567,8.43074287,119.53,119.51,8.3715]
[1744382691972,8.43074287,119.53,119.5,66.58851232]
[1744382692469,8.43074287,119.53,119.5,74.96021232]
[1744382693066,8.3708,119.52,119.5,74.96021232]
[1744382693865,8.43064287,119.53,119.5,74.96021232]
[1744382694466,8.43064287,119.53,119.5,12.96021232]
[1744382694673,8.3708,119.52,119.5,12.96021232]
[1744382694969,0.06024287,119.53,119.5,1.232e-05]
[1744382695167,8.3715,119.51,119.5,1.232e-05]
[1744382700571,8.3743,119.47,119.46,2.38]
[1744382700771,20.96880222,119.49,119.42,2.3328]
[1744382701068,44.18,119.51,119.42,23.30160222]
[1744382701471,44.18,119.54,119.49,8.3725]
[1744382701977,0.05363211,119.53,119.52,8.3708]
[1744382702373,0.05363211,119.53,119.51,0.05889253]
[1744382702670,0.0638591,119.53,119.51,0.06067472]
[1744382702868,8.3708,119.52,119.51,0.06067472]
[1744382703068,0.0638591,119.53,119.52,8.3708]
[1744382704768,44.18,119.57,119.53,8.3694]
[1744382705478,44.18,119.57,119.53,62.0]
[1744382705976,0.05493186,119.56,119.54,0.05732088]
[1744382706579,0.05493186,119.56,119.55,8.3687]
[1744382706981,602.68,119.63,119.59,8.3654]
[1744382707181,44.04,119.64,119.55,20.96880222]
[1744382707486,44.04,119.64,119.57,20.96880222]
[1744382707682,44.04,119.64,119.58,2.3399]
[1744382708075,8.3622,119.65,119.61,8.3641]
[1744382708482,8.3622,119.65,119.61,10.6512]
[1744382708881,132.86307263,119.66,119.62,8.3638]
[1744382709086,124.50187263,119.66,119.62,8.3638]
[1744382709287,124.50187263,119.66,119.63,0.06116899]
[1744382709590,132.86307263,119.66,119.63,0.06116899]
[1744382709787,124.50187263,119.66,119.63,0.06116899]
[1744382710485,44.04,119.7,119.63,0.06116899]
[1744382711689,8.3607,119.67,119.63,0.06116899]
[1744382712092,8.3599,119.68,119.63,8.42386899]
[1744382712391,99.0610857,119.73,119.63,23.24057121]
[1744382712586,78.09228348,119.73,119.66,8.361]
[1744382712785,8.3581,119.71,119.67,2.29791535]
[1744382712992,99.0610857,119.73,119.67,2.29791535]
[1744382713192,8.3579,119.71,119.67,2.29791535]
[1744382714193,78.09228348,119.73,119.67,2.29791535]
[1744382714493,44.02,119.73,119.67,2.29791535]
[1744382714694,8.358,119.71,119.67,10.65811535]
[1744382714896,44.02,119.73,119.68,2.2233]
[1744382715193,8.3583,119.7,119.68,2.2233]
[1744382715589,44.02,119.73,119.68,2.2233]
[1744382715797,44.0,119.76,119.68,2.2233]
[1744382715995,44.0,119.78,119.69,2.2236]
[1744382716198,44.0,119.78,119.71,0.05973715]
[1744382716493,20.96880222,119.75,119.71,0.05973715]
[1744382716894,44.0,119.74,119.71,0.05973715]
[1744382717194,44.0,119.75,119.71,0.05523058]
[1744382717494,8.3555,119.74,119.71,0.05523058]
[1744382718191,667.06880222,119.81,119.71,0.05523058]
[1744382718495,20.96880222,119.79,119.7,44.0]
[1744382718693,667.06880222,119.81,119.75,0.06422534]
[1744382718990,646.1,119.81,119.75,0.06422534]
[1744382719194,8.3537,119.77,119.75,0.06422534]
[1744382719395,667.06880222,119.81,119.75,0.06422534]
[1744382719792,8.3537,119.77,119.75,0.06422534]
[1744382719986,667.06880222,119.81,119.75,0.06422534]
[1744382720194,646.1,119.81,119.75,0.06422534]
[1744382720394,44.0,119.81,119.75,0.06422534]
[1744382721288,44.0,119.81,119.76,62.0]
[1744382721491,8.3524,119.79,119.76,62.0]
[1744382721997,8.3516,119.8,119.76,70.3536]
[1744382722197,44.0,119.81,119.76,70.3536]
[1744382722390,44.0,119.81,119.76,62.0]
[1744382723788,44.0,119.81,119.75,0.06422534]
[1744382724192,44.0,119.81,119.78,8.3522]
[1744382724392,44.0,119.81,119.74,69.57820222]
[1744382724589,44.0,119.81,119.78,0.05534295]
[1744382726201,8.3519,119.79,119.78,0.05534295]
[1744382726598,20.96880222,119.8,119.71,2.1764]
[1744382726803,8.3547,119.75,119.71,2.1764]
[1744382727007,43.96,119.77,119.71,2.1764]
[1744382727309,8.3544,119.76,119.73,8.3558]
[1744382727493,43.96,119.77,119.71,2.1764]
[1744382727698,43.96,119.77,119.73,0.05618158]
[1744382727699,0.05276805,119.75,119.73,0.05618158]
[1744382728204,8.40746805,119.75,119.73,0.05618158]
[1744382728399,0.05276805,119.75,119.73,0.05618158]
[1744382729106,0.05276805,119.75,119.73,8.41218158]
[1744382729605,0.05276805,119.75,119.73,0.05618158]
[1744382730010,8.40786805,119.75,119.73,0.05618158]
[1744382730209,0.05276805,119.75,119.73,0.05618158]
[1744382730710,64.92880222,119.82,119.73,0.05618158]
[1744382730913,64.92880222,119.82,119.73,2.3405]
[1744382731311,8.3523,119.79,119.76,8.3535]
[1744382731697,8.3523,119.79,119.73,2.3405]
[1744382731698,20.96880222,119.84,119.74,20.96880222]
[1744382731899,64.92880222,119.86,119.76,0.052725]
[1744382732211,64.92880222,119.86,119.75,43.96]
[1744382732405,64.92880222,119.86,119.8,0.05743032]
[1744382733505,43.96,119.86,119.8,0.05743032]
[1744382733900,43.96,119.86,119.83,8.3488]
[1744382734211,43.96,119.86,119.83,8.40620996]
[1744382734402,52.3071,119.86,119.83,8.40620996]
[1744382734613,43.96,119.86,119.84,8.3481]
[1744382734807,43.86,119.89,119.83,0.05740996]
[1744382735111,8.347,119.86,119.85,0.05340714]
[1744382735516,43.86,119.89,119.85,0.05340714]
[1744382736009,8.347,119.86,119.85,7.14e-06]
[1744382736204,20.96880222,119.86,119.76,66.5597]
[1744382736410,43.84,119.85,119.76,89.81230222]
[1744382736707,64.80880222,119.88,119.78,20.96880222]
[1744382737113,64.80880222,119.88,119.77,43.84]
[1744382737312,0.06101702,119.84,119.82,0.06395298]
[1744382737610,8.3492,119.83,119.82,0.06395298]
[1744382740212,52.24971702,119.84,119.82,0.06395298]
[1744382740614,43.90101702,119.84,119.82,0.06395298]
[1744382740817,52.24971702,119.84,119.82,0.06395298]
[1744382741112,43.84,119.92,119.82,73.2127552]
[1744382741313,8.3446,119.9,119.83,6.7803]
[1744382741514,43.84,119.92,119.84,20.96880222]
[1744382742018,52.1832,119.92,119.88,8.3453]
[1744382742310,52.1832,119.92,119.79,617.8632]
[1744382742311,20.96880222,119.91,119.87,0.05889888]
[1744382742511,43.84,119.92,119.8,4.5238]
[1744382742512,8.347,119.86,119.8,4.5238]
[1744382742818,34.07228348,120.0,119.86,16.6936]
[1744382743009,34.07228348,120.0,119.88,20.96880222]
[1744382743010,8.3387,119.98,119.88,20.96880222]
[1744382743210,34.07228348,120.0,119.91,8.3434]
[1744382743412,43.84,119.99,119.91,8.3434]
[1744382743606,0.05840699,119.97,119.94,0.05479461]
[1744382744019,8.39820699,119.97,119.94,0.05479461]
[1744382744316,0.05840699,119.97,119.94,8.39619461]
[1744382744518,0.05840699,119.97,119.95,62.0]
[1744382744712,0.05840699,119.97,119.95,64.2607]
[1744382746308,0.05840699,119.97,119.95,2.2607]
[1744382747120,43.82,119.96,119.95,2.2607]
[1744382747620,43.82,119.96,119.94,0.05479461]
[1744382748013,0.05840699,119.97,119.96,8.3401]
[1744382748419,0.05840699,119.97,119.94,0.05479461]
[1744382749014,0.05840699,119.97,119.94,8.39589461]
[1744382749626,43.8,119.96,119.94,0.05479461]
[1744382750220,52.1404,119.96,119.94,0.05479461]
[1744382750420,43.8,119.96,119.94,0.05479461]
[1744382750922,0.05840699,119.97,119.94,0.05479461]
[1744382752920,0.05840699,119.97,119.95,8.3402]
[1744382753311,0.05840699,119.97,119.94,0.05479461]
[1744382753919,0.05840699,119.97,119.95,8.3404]
[1744382754121,0.05840699,119.97,119.94,0.05479461]
[1744382754423,0.05840699,119.97,119.95,8.3404]
[1744382754619,0.05840699,119.97,119.94,0.05479461]
[1744382755024,0.05840699,119.97,119.94,8.39579461]
[1744382755725,0.05840699,119.97,119.95,8.3405]
[1744382757225,0.05840699,119.97,119.94,0.05479461]
[1744382757729,0.05840699,119.97,119.95,8.3404]
[1744382758027,0.05840699,119.97,119.94,0.05479461]
[1744382759030,0.05840699,119.97,119.96,8.3401]
[1744382761226,600.66,120.02,119.99,8.3375]
[1744382761631,34.07228348,120.12,119.99,20.96880222]
[1744382761927,34.07228348,120.12,120.01,20.96880222]
[1744382761928,8.3314,120.09,120.01,20.96880222]
[1744382762123,8.3314,120.09,120.02,20.96880222]
[1744382762328,52.1107,120.1,120.06,8.333]
[1744382762524,43.78,120.1,120.02,20.96880222]
[1744382762726,43.78,120.1,120.07,0.0638168]
[1744382763630,8.3315,120.09,120.07,0.0638168]
[1744382763831,43.78,120.1,120.07,0.0638168]
[1744382764024,8.331,120.09,120.07,0.0638168]
[1744382764223,43.78,120.1,120.07,0.0638168]
[1744382764831,634.57228348,120.12,120.07,0.0638168]
[1744382765035,34.07228348,120.12,120.07,0.0638168]
[1744382765236,34.07228348,120.12,120.07,6.7595168]
[1744382765734,43.7,120.13,120.07,6.7595168]
[1744382766236,20.96880222,120.21,120.1,20.96880222]
[1744382766435,644.12,120.18,120.1,20.96880222]
[1744382766732,8.3259,120.17,120.13,0.05543166]
[1744382767137,644.12,120.18,120.13,0.05543166]
[1744382767639,652.4449,120.18,120.14,8.3275]
[1744382767831,652.4449,120.18,120.13,0.05543166]
[1744382768031,43.7,120.21,120.14,82.96880222]
[1744382768233,310.53974711,120.23,120.2,20.96880222]
[1744382768432,303.30614711,120.23,120.22,20.96880222]
[1744382769034,281.23288597,120.25,120.22,64.64880222]
[1744382769237,281.23288597,120.25,120.22,20.96880222]
[1744382769441,281.23288597,120.25,120.24,20.96880222]
[1744382769642,34.13175478,120.31,120.24,20.96880222]
[1744382769837,34.13175478,120.31,120.22,20.96880222]
[1744382770138,2.184,120.3,120.26,0.0527726]
[1744382770340,10.5007,120.3,120.26,0.0527726]
[1744382770535,2.184,120.3,120.26,0.0527726]
[1744382770739,23.15280222,120.3,120.26,0.0527726]
[1744382772552,31.46930222,120.3,120.29,212.89158985]
[1744382772743,23.15280222,120.3,120.27,525.85344008]
[1744382772949,20.96880222,120.28,120.27,42.21753048]
[1744382773150,64.60880222,120.28,120.27,20.53053048]
[1744382773450,72.92880222,120.28,120.26,0.0527726]
[1744382773645,64.60880222,120.28,120.26,7.26e-05]
[1744382773841,72.92880222,120.28,120.16,8.3256]
[1744382774043,20.96880222,120.25,120.16,8.3256]
[1744382774345,622.79280222,120.3,120.15,2.2716]
[1744382774346,43.64,120.24,120.15,2.2716]
[1744382774649,8.3215,120.23,120.15,2.2716]
[1744382774850,43.64,120.24,120.15,2.2716]
[1744382775046,0.06013003,120.2,120.18,8.38170898]
[1744382775453,15.83591877,120.24,120.18,134.05002003]
[1744382775654,36.80472099,120.24,120.18,134.05002003]
[1744382776150,8.3224,120.22,120.18,134.05002003]
[1744382776453,36.80472099,120.24,120.18,134.05002003]
[1744382776642,8.3234,120.2,120.18,0.05690898]
[1744382776947,36.80472099,120.24,120.18,0.05690898]
[1744382777150,8.322,120.22,120.21,12.95056]
[1744382777753,8.3215,120.23,120.21,12.95056]
[1744382778254,15.83591877,120.24,120.16,2.3882]
[1744382778454,23.28810222,120.29,120.18,20.96880222]
[1744382778654,43.62,120.28,120.18,20.96880222]
[1744382779058,8.32,120.25,120.2,8.323]
[1744382779356,0.05310219,120.24,120.18,20.96880222]
[1744382779550,0.05310219,120.24,120.17,43.62]
[1744382779756,43.67310219,120.24,120.16,2.3882]
[1744382779955,43.62,120.24,120.16,2.3882]
[1744382780257,20.96880222,120.23,120.15,2.2716]
[1744382780558,21.02873604,120.21,120.18,5.432e-05]
[1744382780756,8.3241,120.19,120.18,5.432e-05]
[1744382782755,64.58880222,120.2,120.1,2.3223]
[1744382782956,20.96880222,120.18,120.1,2.3223]
[1744382783144,2.3926,120.17,120.1,2.3223]
[1744382783349,8.3296,120.11,120.1,2.3223]
[1744382783659,64.58880222,120.16,120.09,2.3485]
[1744382783957,0.05991131,120.14,120.11,0.05513505]
[1744382784356,8.329,120.12,120.11,0.05513505]
[1744382784559,0.05991131,120.14,120.07,8.3319]
[1744382784753,199.66742653,120.16,120.06,4.7241]
[1744382784953,199.66742653,120.16,120.06,13.0568]
[1744382785158,8.3309,120.1,120.06,4.7241]
[1744382785359,43.62,120.12,120.06,4.7241]
[1744382785556,8.3321,120.08,120.06,2.3223]
[1744382785759,0.0534454,120.1,120.06,2.3223]
[1744382785969,0.0534454,120.1,120.07,8.3323]
[1744382786262,8.3841454,120.1,120.06,2.38217454]
[1744382786561,8.3841454,120.1,120.06,72.71497454]
[1744382786864,8.3311,120.09,120.06,64.38217454]
[1744382787360,8.3841454,120.1,120.06,64.38217454]
[1744382787663,0.0534454,120.1,120.06,64.38217454]
[1744382788158,734.37862431,120.15,120.09,8.3305]
[1744382788159,778.01862431,120.15,120.09,8.3305]
[1744382788563,8.3286,120.13,120.06,128.93110222]
[1744382788759,8.3286,120.13,120.09,8.3306]
[1744382788965,778.01862431,120.15,120.09,8.3306]
[1744382789167,0.05654302,120.12,120.1,0.05764194]
[1744382791165,8.38574302,120.12,120.1,0.05764194]
[1744382792066,8.3296,120.11,120.1,0.05764194]
[1744382792567,51.9696,120.11,120.1,0.05764194]
[1744382793568,43.64,120.11,120.04,361.44921501]
[1744382793769,43.64,120.11,120.04,1.44921501]
[1744382793961,43.64,120.11,120.01,23.26710222]
[1744382794771,0.05749096,120.08,120.05,0.05911395]
[1744382795072,8.3325,120.07,120.05,0.05911395]
[1744382795270,0.05749096,120.08,120.05,0.05911395]
[1744382795569,0.05749096,120.08,120.06,8.3326]
[1744382795767,0.05749096,120.08,120.05,0.05911395]
[1744382796773,24.97935941,120.07,120.04,8.3344]
[1744382796965,24.97935941,120.07,120.03,62.0]
[1744382797265,68.57935941,120.07,120.02,2.1937]
[1744382797469,8.3342,120.05,120.02,10.5295]
[1744382797863,68.57935941,120.07,120.02,0.054529]
[1744382798160,0.06121813,120.05,120.02,0.054529]
[1744382798367,8.3345,120.04,120.02,0.054529]
[1744382798567,0.06121813,120.05,120.02,0.054529]
[1744382799271,8.3352,120.03,120.02,0.054529]
[1744382799871,51.9552,120.03,120.02,0.054529]
[1744382801674,8.3376,120.0,119.97,32.46271]
[1744382802271,8.3362,120.02,119.97,24.12361]
[1744382802469,43.62,120.03,119.97,24.12361]
[1744382802673,43.62,120.03,119.99,8.3376]
[1744382802875,0.05480301,120.01,119.99,8.39417984]
[1744382804377,0.05480301,120.01,119.99,0.05657984]
[1744382805474,8.39190301,120.01,119.99,0.05657984]
[1744382805778,0.05480301,120.01,119.99,0.05657984]
[1744382805973,0.05480301,120.01,120.0,8.3373]
[1744382806179,8.3348,120.04,119.99,0.05657984]
[1744382806375,43.64,120.06,120.0,20.96880222]
[1744382806679,43.64,120.06,119.98,20.96880222]
[1744382807082,43.64,120.06,120.0,8.3369]
[1744382807273,0.06238248,120.03,120.01,0.05980289]
[1744382807676,8.3359,120.02,120.01,0.05980289]
[1744382808186,51.9759,120.02,120.01,0.05980289]
[1744382809292,43.64,120.02,120.01,0.05980289]
[1744382809477,8.39798248,120.03,120.01,0.05980289]
[1744382809681,0.06238248,120.03,120.01,0.05980289]
[1744382810087,34.30117881,120.12,120.05,8.3334]
[1744382810484,55.26998103,120.12,120.02,4.5977]
[1744382811089,8.3334,120.06,120.02,66.5977]
[1744382811381,43.64,120.06,120.03,0.05358015]
[1744382811588,8.38967063,120.05,120.03,0.05358015]
[1744382812088,16.6572,120.13,120.03,0.05358015]
[1744382812288,43.64,120.13,120.02,64.3989]
[1744382812587,2.2126,120.12,120.02,64.3989]
[1744382812784,8.3308,120.1,120.02,64.3989]
[1744382813087,43.64,120.09,120.06,8.3328]
[1744382813388,0.05824354,120.08,120.06,0.05267608]
[1744382813791,0.05824354,120.08,120.02,2.3989]
[1744382814184,8.3337,120.06,120.03,8.3351]
[1744382814384,43.64,120.05,120.03,8.3351]
[1744382814792,43.64,120.05,120.02,2.3989]
[1744382814988,0.06147234,120.05,120.03,0.05490323]
[1744382815190,8.3307,120.1,120.04,20.96880222]
[1744382815390,8.3307,120.1,120.04,23.25630222]
[1744382815684,8.332,120.08,120.04,2.2875]
[1744382816092,43.64,120.09,120.05,8.3337]
[1744382816291,0.05796632,120.07,120.05,0.06189096]
[1744382816794,0.05796632,120.07,120.05,8.39539096]
[1744382817296,8.39046632,120.07,120.05,8.39539096]
[1744382817596,0.05796632,120.07,120.05,0.06189096]
[1744382817892,20.96880222,120.06,119.99,8.3376]
[1744382818088,20.96880222,120.04,119.97,24.12361]
[1744382818290,8.3387,119.98,119.97,24.12361]
[1744382818488,51.9587,119.98,119.97,24.12361]
[1744382819793,51.9587,119.98,119.97,7.72201]
[1744382820496,43.62,119.98,119.97,7.72201]
[1744382821191,0.06198879,119.99,119.97,7.72201]
[1744382821594,8.3387,119.98,119.97,7.72201]
[1744382821793,0.06198879,119.99,119.97,7.72201]
[1744382822195,34.30117881,120.04,119.97,37.03081222]
[1744382822393,34.30117881,120.04,119.99,20.96880222]
[1744382822594,34.30117881,120.04,120.02,8.3355]
[1744382822902,30.68237881,120.04,120.01,20.96880222]